bitfinex-derivatives/quotes_BTCF0:USTF0_20260221
["timestamp","ask_amount","ask_price","bid_price","bid_amount"]
[1771635899250,0.014727,67927.0,67923.0,0.014728]
[1771635902945,0.014727,67926.0,67910.0,0.07257415]
[1771635903346,0.014727,67927.0,67910.0,0.07257415]
[1771635904647,0.014727,67927.0,67923.0,0.014728]
[1771635906554,0.014727,67926.0,67921.0,0.014728]
[1771635906755,0.014727,67926.0,67922.0,0.014728]
[1771635907354,0.014727,67926.0,67923.0,0.014728]
[1771635910654,0.014727,67926.0,67922.0,0.014728]
[1771635910959,0.014727,67927.0,67922.0,0.014728]
[1771635911360,0.014727,67927.0,67923.0,0.014728]
[1771635913549,0.28080312,67933.0,67916.0,0.33077174]
[1771635913745,0.28080312,67933.0,67840.0,2.21106468]
[1771635913746,0.014728,67924.0,67920.0,0.014729]
[1771635915156,0.014727,67928.0,67921.0,0.014728]
[1771635915352,0.014727,67928.0,67924.0,0.014728]
[1771635916952,0.014727,67929.0,67924.0,0.014728]
[1771635917158,0.014727,67929.0,67925.0,0.014727]
[1771635917465,0.014727,67928.0,67925.0,0.014727]
[1771635917961,0.014727,67928.0,67924.0,0.014728]
[1771635919561,0.014727,67928.0,67919.0,0.014729]
[1771635919866,0.014728,67924.0,67921.0,0.014728]
[1771635921067,0.014728,67924.0,67920.0,0.014728]
[1771635921866,0.014728,67924.0,67921.0,0.014728]
[1771635922466,0.014728,67924.0,67920.0,0.014728]
[1771635922964,0.014728,67922.0,67918.0,0.014729]
[1771635925774,0.014728,67921.0,67918.0,0.014729]
[1771635926175,0.014728,67922.0,67918.0,0.014729]
[1771635927879,0.01473,67914.0,67909.0,0.014731]
[1771635928083,0.01473,67913.0,67910.0,0.014731]
[1771635929580,0.014731,67911.0,67907.0,0.014731]
[1771635930279,0.014731,67911.0,67908.0,0.014731]
[1771635931477,0.01473,67912.0,67908.0,0.014731]
[1771635931977,0.014731,67911.0,67906.0,0.014732]
[1771635932180,0.014731,67911.0,67907.0,0.014731]
[1771635932382,0.01473,67912.0,67908.0,0.014731]
[1771635932578,0.01473,67912.0,67909.0,0.014731]
[1771635932779,0.01473,67913.0,67909.0,0.014731]
[1771635933290,0.01473,67913.0,67909.0,0.029462]
[1771635933472,0.01473,67915.0,67909.0,0.029462]
[1771635933676,0.01473,67914.0,67910.0,0.014731]
[1771635938085,0.01473,67913.0,67910.0,0.014731]
[1771635940988,0.01473,67913.0,67909.0,0.014731]
[1771635942389,0.01473,67913.0,67910.0,0.014731]
[1771635946294,0.26598407,67919.0,67900.0,0.18051801]
[1771635946485,0.014731,67909.0,67906.0,0.014731]
[1771635946982,0.014731,67911.0,67906.0,0.014731]
[1771635946983,0.014731,67910.0,67906.0,0.014731]
[1771635951097,0.029462,67912.0,67908.0,0.014731]
[1771635951495,0.014731,67911.0,67908.0,0.014731]
[1771635959798,0.014728,67921.0,67901.0,0.18520059]
[1771635960003,0.01473,67916.0,67913.0,0.01473]
[1771635960195,0.01473,67916.0,67912.0,0.01473]
[1771635960397,0.014729,67919.0,67913.0,0.01473]
[1771635960597,0.014729,67920.0,67914.0,0.01473]
[1771635960898,0.014729,67920.0,67912.0,0.01473]
[1771635960899,0.0198,67924.0,67918.0,0.014729]
[1771635961101,0.014728,67922.0,67918.0,0.014729]
[1771635961302,0.014728,67921.0,67918.0,0.014729]
[1771635961499,0.014728,67921.0,67917.0,0.014729]
[1771635961697,0.014728,67922.0,67918.0,0.014729]
[1771635961898,0.014729,67919.0,67915.0,0.01473]
[1771635962093,0.014729,67918.0,67915.0,0.01473]
[1771635962299,0.014729,67919.0,67915.0,0.01473]
[1771635962503,0.014729,67920.0,67916.0,0.014729]
[1771635962798,0.014728,67922.0,67919.0,0.014729]
[1771635963000,0.0198,67924.0,67921.0,0.014728]
[1771635964004,0.034528,67924.0,67920.0,0.014729]
[1771635964204,0.034528,67924.0,67919.0,0.014729]
[1771635964205,0.014728,67922.0,67919.0,0.014729]
[1771635964402,0.0198,67924.0,67913.0,0.01473]
[1771635964607,0.01473,67914.0,67909.0,0.26498372]
[1771635965196,0.01473,67913.0,67910.0,0.014731]
[1771635965397,0.01473,67913.0,67909.0,0.014731]
[1771635965700,0.01473,67913.0,67910.0,0.014731]
[1771635965899,0.01473,67914.0,67910.0,0.014731]
[1771635966109,0.01473,67914.0,67911.0,0.014731]
[1771635966498,0.01473,67914.0,67906.0,0.014732]
[1771635966499,0.01473,67916.0,67912.0,0.02946]
[1771635966897,0.014728,67923.0,67908.0,0.029462]
[1771635967102,0.029456,67923.0,67919.0,0.014729]
[1771635967298,0.014728,67922.0,67918.0,0.014729]
[1771635967605,0.014728,67923.0,67919.0,0.014729]
[1771635967801,0.014728,67922.0,67919.0,0.014729]
[1771635968607,0.014728,67922.0,67918.0,0.014729]
[1771635970007,0.029456,67922.0,67918.0,0.014729]
[1771635970207,0.014728,67921.0,67918.0,0.014729]
[1771635970607,0.014728,67922.0,67918.0,0.014729]
[1771635971106,0.014728,67922.0,67915.0,0.014729]
[1771635971107,0.014729,67919.0,67915.0,0.014729]
[1771635971300,0.014729,67920.0,67915.0,0.01473]
[1771635971301,0.014729,67918.0,67915.0,0.01473]
[1771635972213,0.014728,67921.0,67917.0,0.014729]
[1771635972414,0.014728,67921.0,67917.0,0.029458]
[1771635972708,0.014728,67922.0,67917.0,0.029458]
[1771635973101,0.014728,67922.0,67918.0,0.014729]
[1771635973302,0.014728,67921.0,67917.0,0.014729]
[1771635977311,0.014728,67921.0,67918.0,0.014729]
[1771635977510,0.014728,67922.0,67918.0,0.014729]
[1771635980311,0.014728,67921.0,67917.0,0.014729]
[1771635981314,0.014729,67920.0,67917.0,0.014729]
[1771635982114,0.02333,67926.0,67916.0,0.014729]
[1771635982414,0.014729,67920.0,67916.0,0.014729]
[1771635985017,0.014728,67921.0,67917.0,0.014729]
[1771635987922,0.014729,67920.0,67917.0,0.014729]
[1771635988823,0.014728,67921.0,67917.0,0.014729]
[1771635989525,0.014728,67923.0,67919.0,0.014729]
[1771635989725,0.014728,67922.0,67919.0,0.014729]
[1771635990026,0.014728,67923.0,67919.0,0.014729]
[1771635991421,0.014728,67924.0,67920.0,0.014729]
[1771635993628,0.029456,67924.0,67920.0,0.014729]
[1771635993831,0.014728,67924.0,67920.0,0.014729]
[1771635995725,0.014728,67923.0,67919.0,0.014729]
[1771635995931,0.014728,67921.0,67913.0,0.01473]
[1771635996132,0.014728,67921.0,67915.0,0.014729]
[1771635996330,0.014728,67921.0,67914.0,0.01473]
[1771635996522,0.014728,67921.0,67917.0,0.014729]
[1771635997126,0.014728,67921.0,67917.0,0.029458]
[1771635998918,0.014728,67921.0,67917.0,0.014729]
[1771635999118,0.014729,67920.0,67916.0,0.014729]
[1771635999719,0.014728,67921.0,67917.0,0.014729]
[1771636002834,0.014728,67921.0,67918.0,0.014729]
[1771636004934,0.014728,67922.0,67918.0,0.014729]
[1771636011752,0.014728,67922.0,67919.0,0.014729]
[1771636012250,0.014728,67923.0,67919.0,0.014729]
[1771636013549,0.014727,67929.0,67925.0,0.014727]
[1771636013746,0.014727,67927.0,67924.0,0.014728]
[1771636014050,0.014727,67927.0,67923.0,0.014728]
[1771636016050,0.014727,67930.0,67925.0,0.014727]
[1771636016348,0.014727,67928.0,67924.0,0.014728]
[1771636016850,0.014727,67929.0,67925.0,0.014727]
[1771636017050,0.014726,67930.0,67926.0,0.014727]
[1771636017254,0.014727,67929.0,67925.0,0.014727]
[1771636017753,0.014727,67929.0,67924.0,0.014728]
[1771636017754,0.014727,67928.0,67924.0,0.014728]
[1771636018657,0.014727,67929.0,67925.0,0.014727]
[1771636019454,0.014727,67929.0,67923.0,0.014728]
[1771636019455,0.014727,67928.0,67924.0,0.014728]
[1771636023854,0.01641,67931.0,60944.0,1.0]
[1771636023855,0.01641,67931.0,67914.0,0.17920015]
[1771636024062,0.01641,67931.0,67924.0,0.014728]
[1771636024260,0.01641,67931.0,67928.0,0.014727]
[1771636024452,0.01641,67931.0,67930.0,0.014726]
[1771636024658,0.014725,67938.0,67930.0,0.014726]
[1771636024959,0.014725,67935.0,67930.0,0.014726]
[1771636025147,0.014724,67940.0,67935.0,0.014725]
[1771636025352,0.014725,67935.0,67929.0,0.014726]
[1771636025754,0.014725,67935.0,67930.0,0.014726]
[1771636026154,0.029451,67935.0,67930.0,0.014726]
[1771636026358,0.014725,67939.0,67908.0,0.014731]
[1771636026359,0.01473,67915.0,67908.0,0.014731]
[1771636026563,0.01473,67915.0,67903.0,0.014732]
[1771636026564,0.014729,67916.0,67909.0,0.029462]
[1771636026868,0.014729,67916.0,67905.0,0.014732]
[1771636026869,0.01473,67912.0,67907.0,0.014731]
[1771636027069,0.01473,67912.0,67905.0,0.014732]
[1771636027268,0.01473,67913.0,67904.0,0.014732]
[1771636027867,0.01473,67913.0,67907.0,0.014731]
[1771636028160,0.014731,67911.0,67906.0,0.014732]
[1771636028557,0.01473,67912.0,67907.0,0.014731]
[1771636029560,0.029461,67912.0,67907.0,0.014731]
[1771636029768,0.01473,67912.0,67907.0,0.014731]
[1771636030267,0.014731,67911.0,67907.0,0.014731]
[1771636030460,0.01473,67912.0,67907.0,0.014731]
[1771636030973,0.26968156,67916.0,67909.0,0.014731]
[1771636031156,0.01473,67915.0,67909.0,0.014731]
[1771636031357,0.01473,67914.0,67910.0,0.014731]
[1771636032656,0.01473,67914.0,67909.0,0.014731]
[1771636033761,0.01473,67914.0,67908.0,0.014731]
[1771636034065,0.01473,67914.0,67909.0,0.014731]
[1771636035767,0.014728,67923.0,67900.0,0.05786229]
[1771636036062,0.23250933,67922.0,67917.0,0.014729]
[1771636036257,0.014728,67923.0,67917.0,0.014729]
[1771636036258,0.23250933,67921.0,67917.0,0.014729]
[1771636036459,0.21778133,67920.0,67917.0,0.014729]
[1771636036663,0.21778133,67919.0,67917.0,0.014729]
[1771636036860,0.21778133,67918.0,67916.0,0.014729]
[1771636037068,0.21778133,67917.0,67916.0,0.014729]
[1771636037271,0.09919838,67917.0,67916.0,0.014729]
[1771636038066,0.014728,67922.0,67917.0,0.014729]
[1771636038264,0.014728,67922.0,67916.0,0.014729]
[1771636038664,0.014728,67921.0,67916.0,0.014729]
[1771636038864,0.014728,67921.0,67917.0,0.014729]
[1771636039367,0.44045595,67937.0,67905.0,0.20202374]
[1771636039572,0.014728,67925.0,67920.0,0.014728]
[1771636039770,0.014727,67928.0,67921.0,0.014728]
[1771636039969,0.014728,67925.0,67921.0,0.014728]
[1771636040871,0.029452,67931.0,67926.0,0.014727]
[1771636041074,0.014726,67932.0,67925.0,0.0008]
[1771636041269,0.014726,67931.0,67926.0,0.014727]
[1771636041566,0.014726,67931.0,67922.0,0.014728]
[1771636041567,0.014727,67929.0,67924.0,0.014728]
[1771636042566,0.014727,67929.0,67910.0,0.18052527]
[1771636042567,0.014728,67922.0,67917.0,0.014729]
[1771636043067,0.014729,67917.0,67912.0,0.01473]
[1771636043467,0.014728,67922.0,67917.0,0.014729]
[1771636043770,0.014729,67920.0,67915.0,0.01473]
[1771636044870,0.014729,67919.0,67915.0,0.01473]
[1771636046268,0.014727,67926.0,67915.0,0.01473]
[1771636046673,0.014729,67919.0,67915.0,0.01473]
[1771636046875,0.029458,67919.0,67915.0,0.01473]
[1771636047777,0.014729,67918.0,67914.0,0.01473]
[1771636048775,0.014729,67918.0,67915.0,0.01473]
[1771636049176,0.014729,67917.0,67914.0,0.01473]
[1771636049363,0.014729,67917.0,67912.0,0.01473]
[1771636049364,0.01473,67916.0,67912.0,0.01473]
[1771636050168,0.01473,67915.0,67911.0,0.01473]
[1771636051177,0.014729,67916.0,67911.0,0.01473]
[1771636051376,0.01473,67914.0,67911.0,0.01473]
[1771636051573,0.01473,67915.0,67911.0,0.01473]
[1771636052474,0.02946,67915.0,67911.0,0.01473]
[1771636052682,0.01473,67913.0,67910.0,0.014731]
[1771636052886,0.01473,67913.0,67909.0,0.014731]
[1771636056983,0.01473,67915.0,67911.0,0.01473]
[1771636057385,0.01473,67915.0,67910.0,0.014731]
[1771636057978,0.01473,67914.0,67911.0,0.01473]
[1771636058172,0.01473,67915.0,67911.0,0.01473]
[1771636060084,0.01473,67915.0,67912.0,0.01473]
[1771636060884,0.01473,67915.0,67911.0,0.01473]
[1771636061384,0.01473,67915.0,67912.0,0.01473]
[1771636062088,0.01473,67915.0,67911.0,0.02946]
[1771636062986,0.01473,67915.0,67911.0,0.01473]
[1771636063979,0.02946,67916.0,67912.0,0.01473]
[1771636064183,0.01473,67915.0,67912.0,0.01473]
[1771636068694,0.014729,67917.0,67912.0,0.01473]
[1771636068889,0.014727,67926.0,67922.0,0.029456]
[1771636069082,0.014728,67925.0,67920.0,0.014729]
[1771636069297,0.014728,67925.0,67920.0,0.014728]
[1771636069490,0.014728,67925.0,67921.0,0.014728]
[1771636071892,0.014728,67924.0,67920.0,0.014728]
[1771636072092,0.014728,67925.0,67920.0,0.014728]
[1771636072792,0.014728,67925.0,67921.0,0.014728]
[1771636073397,0.014728,67924.0,67920.0,0.014728]
[1771636074288,0.014728,67925.0,67921.0,0.014728]
[1771636075101,0.014727,67926.0,67921.0,0.014728]
[1771636075598,0.014727,67928.0,67923.0,0.014728]
[1771636075800,0.014727,67927.0,67923.0,0.014728]
[1771636077691,0.014726,67931.0,67923.0,0.014728]
[1771636077692,0.014727,67929.0,67924.0,0.014728]
[1771636077994,0.014727,67928.0,67924.0,0.014728]
[1771636078200,0.014727,67929.0,67924.0,0.014728]
[1771636078392,0.029454,67929.0,67924.0,0.014728]
[1771636078588,0.014727,67929.0,67925.0,0.014727]
[1771636078799,0.014727,67928.0,67924.0,0.014728]
[1771636078995,0.014727,67929.0,67925.0,0.014727]
[1771636079198,0.014727,67930.0,67925.0,0.014727]
[1771636079499,0.014727,67929.0,67925.0,0.014727]
[1771636080695,0.29598345,67938.0,67920.0,0.18052527]
[1771636080896,0.014726,67933.0,67929.0,0.014727]
[1771636081103,0.014726,67934.0,67930.0,0.014726]
[1771636081501,0.014726,67934.0,67929.0,0.014727]
[1771636082196,0.21981315,67933.0,67929.0,0.014727]
[1771636082402,0.21981315,67932.0,67929.0,0.014727]
[1771636082592,0.014726,67933.0,67929.0,0.014727]
[1771636082799,0.21977703,67932.0,67929.0,0.014727]
[1771636082999,0.014726,67933.0,67929.0,0.014727]
[1771636083194,0.21977687,67932.0,67929.0,0.014727]
[1771636083389,0.014726,67933.0,67929.0,0.014727]
[1771636085294,0.014725,67937.0,67917.0,0.014729]
[1771636085295,0.014728,67923.0,67917.0,0.014729]
[1771636085603,0.014729,67920.0,67916.0,0.014729]
[1771636085994,0.014729,67920.0,67916.0,0.029458]
[1771636086196,0.014729,67920.0,67916.0,0.014729]
[1771636089807,0.014729,67919.0,67914.0,0.02946]
[1771636090007,0.014729,67919.0,67914.0,0.01473]
[1771636090209,0.014729,67919.0,67915.0,0.01473]
[1771636090805,0.014729,67920.0,67915.0,0.01473]
[1771636091007,0.014729,67919.0,67915.0,0.01473]
[1771636091408,0.014729,67919.0,67915.0,0.02946]
[1771636091707,0.014729,67919.0,67915.0,0.01473]
[1771636092104,0.014729,67920.0,67915.0,0.01473]
[1771636092310,0.014729,67920.0,67916.0,0.014729]
[1771636095719,0.014728,67921.0,67917.0,0.014729]
[1771636095915,0.28125845,67927.0,67917.0,0.014729]
[1771636097506,0.014728,67921.0,67917.0,0.014729]
[1771636099021,0.014729,67920.0,67915.0,0.02946]
[1771636099215,0.014729,67920.0,67915.0,0.01473]
[1771636099423,0.014729,67920.0,67916.0,0.014729]
[1771636100824,0.014728,67922.0,67917.0,0.014729]
[1771636101128,0.014728,67922.0,67918.0,0.014729]
[1771636101320,0.014728,67921.0,67917.0,0.014729]
[1771636104932,0.014728,67921.0,67916.0,0.014729]
[1771636105433,0.014729,67920.0,67916.0,0.014729]
[1771636106734,0.014728,67921.0,67916.0,0.014729]
[1771636107734,0.014728,67921.0,67917.0,0.014729]
[1771636109833,0.014728,67921.0,67916.0,0.014729]
[1771636110039,0.014729,67917.0,67915.0,0.0008]
[1771636110239,0.014729,67917.0,67913.0,0.01473]
[1771636110737,0.014729,67918.0,67913.0,0.01473]
[1771636111138,0.014729,67917.0,67913.0,0.01473]
[1771636111338,0.014729,67917.0,67913.0,0.02946]
[1771636112630,0.28125845,67927.0,67906.0,0.014731]
[1771636112832,0.01473,67915.0,67911.0,0.014731]
[1771636113032,0.01473,67914.0,67910.0,0.014731]
[1771636113236,0.01473,67913.0,67909.0,0.014731]
[1771636113441,0.01473,67915.0,67910.0,0.014731]
[1771636113642,0.014729,67917.0,67913.0,0.01473]
[1771636117542,0.014729,67918.0,67914.0,0.01473]
[1771636117745,0.014729,67919.0,67915.0,0.01473]
[1771636120041,0.014729,67920.0,67913.0,0.01473]
[1771636120241,0.014729,67919.0,67915.0,0.01473]
[1771636122945,0.014728,67923.0,67916.0,0.014729]
[1771636123141,0.33737649,67930.0,67918.0,0.014729]
[1771636123142,0.014726,67930.0,67918.0,0.014729]
[1771636123443,0.22101263,67929.0,67918.0,0.014729]
[1771636123747,0.014728,67922.0,67918.0,0.014729]
[1771636124840,0.014729,67919.0,67915.0,0.014729]
[1771636125046,0.029458,67919.0,67915.0,0.014729]
[1771636125236,0.014729,67920.0,67916.0,0.014729]
[1771636125949,0.014729,67919.0,67915.0,0.014729]
[1771636126248,0.014729,67919.0,67916.0,0.014729]
[1771636127250,0.014729,67920.0,67916.0,0.014729]
[1771636131053,0.014729,67919.0,67915.0,0.014729]
[1771636131851,0.014729,67920.0,67916.0,0.014729]
[1771636133754,0.014729,67919.0,67915.0,0.014729]
[1771636136941,0.014729,67918.0,67911.0,0.01473]
[1771636137149,0.014729,67917.0,67913.0,0.01473]
[1771636137445,0.014729,67918.0,67914.0,0.01473]
[1771636139547,0.014729,67917.0,67912.0,0.01473]
[1771636139755,0.014729,67918.0,67909.0,0.014731]
[1771636139756,0.01473,67913.0,67909.0,0.014731]
[1771636140752,0.01473,67913.0,67902.0,0.014732]
[1771636140753,0.014732,67907.0,67902.0,0.014732]
[1771636140952,0.014732,67907.0,67895.0,0.014734]
[1771636141151,0.014732,67907.0,67902.0,0.014732]
[1771636141745,0.014732,67907.0,67895.0,0.014734]
[1771636141943,0.014732,67907.0,67902.0,0.014732]
[1771636142551,0.014732,67907.0,67903.0,0.014732]
[1771636143344,0.014732,67907.0,67902.0,0.014732]
[1771636143545,0.014732,67907.0,67903.0,0.014732]
[1771636144847,0.014731,67908.0,67904.0,0.014732]
[1771636145053,0.014731,67907.0,67903.0,0.014732]
[1771636146554,0.014731,67908.0,67904.0,0.014732]
[1771636149255,0.029462,67908.0,67904.0,0.014732]
[1771636149760,0.029462,67908.0,67903.0,0.014732]
[1771636150359,0.029462,67908.0,67904.0,0.014732]
[1771636151156,0.014731,67907.0,67903.0,0.029464]
[1771636153066,0.014732,67906.0,67902.0,0.029464]
[1771636153263,0.014731,67907.0,67903.0,0.014732]
[1771636153962,0.014731,67908.0,67900.0,0.014733]
[1771636154159,0.014732,67907.0,67903.0,0.014732]
[1771636154966,0.014731,67908.0,67904.0,0.014732]
[1771636158665,0.014731,67909.0,67905.0,0.014732]
[1771636159168,0.014731,67910.0,67903.0,0.014732]
[1771636159657,0.014732,67907.0,67903.0,0.014732]
[1771636163263,0.014732,67906.0,67903.0,0.014732]
[1771636164262,0.014732,67907.0,67903.0,0.014732]
[1771636165771,0.014731,67908.0,67904.0,0.014732]
[1771636168774,0.014727,67926.0,67914.0,0.26871917]
[1771636169070,0.19535589,67950.0,67944.0,0.014723]
[1771636169262,0.19535589,67950.0,67936.0,0.014725]
[1771636169263,0.014722,67951.0,67936.0,0.01130698]
[1771636169459,0.014722,67949.0,67942.0,0.014724]
[1771636169762,0.014723,67947.0,67937.0,0.014725]
[1771636170073,0.014723,67947.0,67941.0,0.00084]
[1771636170074,0.014723,67946.0,67941.0,0.00084]
[1771636170374,0.014723,67946.0,67941.0,0.014724]
[1771636170581,0.014723,67947.0,67942.0,0.014724]
[1771636170871,0.029446,67947.0,67942.0,0.014724]
[1771636171069,0.014723,67947.0,67942.0,0.014724]
[1771636172572,0.014723,67947.0,67943.0,0.014724]
[1771636173072,0.014723,67947.0,67941.0,0.014724]
[1771636173473,0.014724,67944.0,67935.0,0.014725]
[1771636173664,0.029448,67944.0,67937.0,0.014725]
[1771636173863,0.029448,67944.0,67935.0,0.014725]
[1771636173864,0.014724,67944.0,67936.0,0.04417]
[1771636174064,0.014724,67944.0,67939.0,0.014724]
[1771636174278,0.014724,67944.0,67937.0,0.058895]
[1771636174478,0.014724,67943.0,67937.0,0.014725]
[1771636174666,0.014724,67943.0,67939.0,0.014724]
[1771636175477,0.014723,67944.0,67939.0,0.029448]
[1771636175669,0.014723,67944.0,67939.0,0.014724]
[1771636175974,0.014723,67944.0,67940.0,0.014724]
[1771636176876,0.014723,67946.0,67933.0,0.014726]
[1771636176877,0.014725,67937.0,67933.0,0.014726]
[1771636177077,0.02945,67937.0,67932.0,0.014726]
[1771636177271,0.014725,67937.0,67932.0,0.014726]
[1771636177476,0.014725,67937.0,67931.0,0.014726]
[1771636177677,0.014725,67937.0,67932.0,0.014726]
[1771636177876,0.014725,67937.0,67931.0,0.014726]
[1771636178174,0.014725,67939.0,67931.0,0.01394317]
[1771636178175,0.014725,67935.0,67931.0,0.01394317]
[1771636178978,0.014725,67937.0,67931.0,0.01394317]
[1771636179274,0.014725,67936.0,67932.0,0.014726]
[1771636179684,0.12976859,67970.0,67944.0,0.29615795]
[1771636179867,0.12976859,67970.0,67958.0,0.01472]
[1771636179868,0.01472,67962.0,67958.0,0.01472]
[1771636180068,0.01472,67962.0,67957.0,0.00780926]
[1771636180362,0.01472,67960.0,67955.0,0.00918342]
[1771636180573,0.01472,67959.0,67955.0,0.00918342]
[1771636182968,0.01472,67961.0,67955.0,0.00918342]
[1771636182969,0.01472,67961.0,67956.0,0.014721]
[1771636183169,0.01472,67960.0,67956.0,0.014721]
[1771636184178,0.01472,67960.0,67955.0,0.014721]
[1771636184380,0.01472,67960.0,67955.0,0.029442]
[1771636184768,0.01472,67960.0,67955.0,0.014721]
[1771636184979,0.01472,67960.0,67956.0,0.014721]
[1771636185186,0.014719,67963.0,67958.0,0.01472]
[1771636186181,0.01472,67962.0,67958.0,0.01472]
[1771636186683,0.01472,67962.0,67958.0,0.00919629]
[1771636187481,0.01472,67961.0,67957.0,0.01472]
[1771636188282,0.01472,67961.0,67955.0,0.014721]
[1771636188780,0.01472,67961.0,67956.0,0.014721]
[1771636189186,0.01472,67961.0,67956.0,0.00922683]
[1771636193274,0.01472,67961.0,67955.0,0.014721]
[1771636193275,0.01472,67960.0,67955.0,0.014721]
[1771636195782,0.01472,67959.0,67955.0,0.014721]
[1771636200180,0.13080631,67962.0,67946.0,0.17622714]
[1771636200389,0.014723,67945.0,67940.0,0.014724]
[1771636200678,0.014723,67945.0,67939.0,0.014724]
[1771636200880,0.18063389,67950.0,67935.0,0.014725]
[1771636201086,0.13050171,67955.0,67934.0,0.014725]
[1771636201087,0.014724,67940.0,67934.0,0.014725]
[1771636201278,0.014725,67939.0,67934.0,0.014725]
[1771636201478,0.014725,67938.0,67934.0,0.014725]
[1771636201688,0.014725,67938.0,67932.0,0.014726]
[1771636202186,0.014725,67938.0,67933.0,0.014726]
[1771636202786,0.014725,67938.0,67934.0,0.014726]
[1771636203288,0.014725,67938.0,67933.0,0.014726]
[1771636203487,0.014724,67939.0,67935.0,0.014725]
[1771636203784,0.014724,67940.0,67936.0,0.014725]
[1771636205789,0.014724,67941.0,67936.0,0.014725]
[1771636209996,0.014724,67940.0,67936.0,0.014725]
[1771636215804,0.014724,67941.0,67936.0,0.014725]
[1771636216805,0.014724,67940.0,67936.0,0.014725]
[1771636218901,0.014724,67940.0,67935.0,0.014725]
[1771636220606,0.014724,67940.0,67935.0,0.02945]
[1771636220999,0.014724,67940.0,67936.0,0.014725]
[1771636221199,0.014724,67939.0,67935.0,0.014725]
[1771636221803,0.014724,67940.0,67935.0,0.014725]
[1771636222607,0.014724,67940.0,67934.0,0.014726]
[1771636222908,0.014724,67940.0,67936.0,0.014725]
[1771636223205,0.014724,67940.0,67934.0,0.014725]
[1771636223410,0.014724,67940.0,67936.0,0.014725]
[1771636229409,0.2070103,67939.0,67936.0,0.014725]
[1771636229609,0.014724,67940.0,67936.0,0.014725]
[1771636229813,0.2070113,67939.0,67936.0,0.014725]
[1771636230017,0.014724,67940.0,67936.0,0.014725]
[1771636230205,0.20701138,67939.0,67936.0,0.014725]
[1771636230407,0.014724,67940.0,67936.0,0.014725]
[1771636230605,0.20701378,67939.0,67936.0,0.014725]
[1771636230900,0.014724,67940.0,67936.0,0.014725]
[1771636231105,0.20701362,67939.0,67936.0,0.014725]
[1771636231306,0.014724,67940.0,67936.0,0.014725]
[1771636231508,0.20706352,67939.0,67936.0,0.014725]
[1771636231808,0.014724,67940.0,67936.0,0.014725]
[1771636232010,0.20706352,67939.0,67936.0,0.014725]
[1771636232217,0.014724,67940.0,67936.0,0.014725]
[1771636234818,0.014724,67941.0,67937.0,0.014725]
[1771636235012,0.014724,67941.0,67936.0,0.014725]
[1771636235517,0.014724,67941.0,67936.0,0.02945]
[1771636236121,0.014724,67941.0,67936.0,0.014725]
[1771636239512,0.014724,67941.0,67936.0,0.02945]
[1771636243317,0.014724,67941.0,67937.0,0.014725]
[1771636248014,0.014724,67941.0,67936.0,0.014725]
[1771636252025,0.014724,67941.0,67936.0,0.02945]
[1771636253420,0.014723,67945.0,67932.0,0.014726]
[1771636253629,0.014724,67944.0,67939.0,0.014724]
[1771636254827,0.014722,67951.0,67939.0,0.014724]
[1771636255021,0.029448,67944.0,67939.0,0.014724]
[1771636255527,0.014724,67944.0,67939.0,0.014724]
[1771636257925,0.014722,67950.0,67939.0,0.34536335]
[1771636258125,0.22046133,67949.0,67944.0,0.014723]
[1771636258430,0.20573933,67948.0,67945.0,0.014723]
[1771636258824,0.20573933,67947.0,67945.0,0.014723]
[1771636259022,0.029444,67950.0,67945.0,0.014723]
[1771636260328,0.014722,67949.0,67944.0,0.014723]
[1771636260534,0.014723,67946.0,67941.0,0.014724]
[1771636261144,0.014723,67946.0,67941.0,0.029448]
[1771636261443,0.014723,67946.0,67942.0,0.014724]
[1771636261745,0.014723,67946.0,67941.0,0.014724]
[1771636262039,0.014723,67944.0,67939.0,0.014724]
[1771636266048,0.014723,67945.0,67939.0,0.014724]
[1771636266241,0.014723,67944.0,67939.0,0.014724]
[1771636271254,0.014724,67943.0,67938.0,0.014725]
[1771636272339,0.20155266,67942.0,67938.0,0.014725]
[1771636272544,0.014724,67943.0,67938.0,0.014725]
[1771636272753,0.20155357,67942.0,67938.0,0.014725]
[1771636273050,0.014724,67943.0,67938.0,0.014725]
[1771636273244,0.2015534,67942.0,67938.0,0.014725]
[1771636273445,0.014724,67943.0,67938.0,0.014725]
[1771636273646,0.2015492,67942.0,67938.0,0.014725]
[1771636273847,0.014724,67943.0,67938.0,0.014725]
[1771636274050,0.20153382,67942.0,67938.0,0.014725]
[1771636274251,0.014724,67943.0,67938.0,0.014725]
[1771636274452,0.20153215,67942.0,67938.0,0.014725]
[1771636274750,0.014724,67943.0,67938.0,0.014725]
[1771636274950,0.20153258,67942.0,67938.0,0.014725]
[1771636275146,0.014724,67943.0,67938.0,0.014725]
[1771636275348,0.20153365,67942.0,67938.0,0.014725]
[1771636275646,0.014724,67943.0,67938.0,0.014725]
[1771636275861,0.20153517,67942.0,67938.0,0.014725]
[1771636276151,0.014724,67943.0,67938.0,0.014725]
[1771636276348,0.20153353,67942.0,67938.0,0.014725]
[1771636276547,0.014724,67942.0,67938.0,0.014725]
[1771636278050,0.014724,67943.0,67938.0,0.014725]
[1771636278258,0.20153948,67942.0,67938.0,0.014725]
[1771636278457,0.014724,67943.0,67938.0,0.014725]
[1771636278657,0.20154458,67942.0,67938.0,0.02945]
[1771636278959,0.014724,67943.0,67939.0,0.014724]
[1771636279160,0.20154482,67942.0,67939.0,0.014724]